bitfinex-derivatives/quotes_ETHF0:USTF0_20210402
["timestamp","ask_amount","ask_price","bid_price","bid_amount"]
[1617391724201,18.99575,2056.8,2055.9,55.5241]
[1617391724403,20.99575,2056.8,2055.9,55.5241]
[1617391724601,4.33615,2056.0,2055.9,58.43105]
[1617391724803,4.33615,2056.0,2054.0,1.1]
[1617391725001,4.33615,2056.0,2054.8,70.8287]
[1617391725401,6.33615,2056.0,2054.8,70.8287]
[1617391725602,4.33615,2056.0,2054.8,70.8287]
[1617391726704,4.65175,2054.9,2054.8,70.8287]
[1617391726904,4.65175,2054.9,2054.7,2.90695]
[1617391727703,2.90695,2054.9,2054.7,2.90695]
[1617391728104,13.5689,2055.8,2054.7,2.90695]
[1617391728306,13.5689,2055.8,2054.9,79.505]
[1617391728706,13.5689,2055.8,2055.6,2.90695]
[1617391729905,13.5689,2055.8,2054.9,79.505]
[1617391730707,15.5689,2055.8,2055.0,2.90695]
[1617391730907,15.5689,2055.8,2054.9,79.505]
[1617391731107,17.3127,2055.8,2054.9,79.505]
[1617391732507,47.3127,2055.8,2054.9,79.505]
[1617391732709,2.90695,2055.0,2054.9,79.505]
[1617391734208,2.90695,2055.0,2054.5,2.90695]
[1617391735210,57.061,2055.6,2054.5,2.90695]
[1617391736812,57.061,2055.6,2055.2,2.90695]
[1617391738212,13.5689,2055.8,2055.2,2.90695]
[1617391738413,14.5551,2055.8,2055.2,4.85975]
[1617391738813,2.90695,2055.3,2055.2,2.90695]
[1617391739412,4.19755,2055.3,2055.2,2.90695]
[1617391740816,2.90695,2055.3,2055.2,2.90695]
[1617391743722,2.90695,2055.3,2054.9,69.594]
[1617391744420,15.3562,2055.8,2054.9,69.594]
[1617391744821,15.3562,2055.8,2055.1,2.90695]
[1617391746822,13.5689,2055.8,2055.5,2.90695]
[1617391747424,13.5689,2055.8,2054.9,69.594]
[1617391748823,2.90695,2055.2,2054.9,72.50095]
[1617391749924,2.90695,2055.2,2054.9,2.90695]
[1617391750124,2.90695,2055.2,2054.1,78.071]
[1617391750924,2.90695,2054.2,2054.1,80.97795]
[1617391751124,4.56025,2054.2,2054.1,2.90695]
[1617391758632,4.56025,2054.2,2053.5,68.1752]
[1617391759035,4.23725,2053.6,2053.5,71.08215]
[1617391759233,4.23725,2053.6,2053.5,3.17648484]
[1617391760033,4.23725,2053.6,2053.5,0.26953484]
[1617391760633,4.23725,2053.6,2052.9,0.26964306]
[1617391760833,4.23725,2053.6,2053.5,0.26965212]
[1617391761033,4.23725,2053.6,2053.5,1.25515212]
[1617391761233,4.23725,2053.6,2053.5,0.9855]
[1617391761434,4.23725,2053.6,2053.0,0.26968338]
[1617391761635,4.23725,2053.6,2052.8,2.9655]
[1617391761835,4.23725,2053.6,2053.1,0.26968626]
[1617391762237,4.23725,2053.6,2052.9,0.26974741]
[1617391762436,4.23725,2053.6,2053.2,0.26977902]
[1617391762836,4.23725,2053.6,2052.9,0.2697922]
[1617391763036,4.23725,2053.6,2053.5,2.90695]
[1617391763736,4.23725,2053.6,2053.5,3.176516]
[1617391764335,75.9591,2054.0,2053.5,3.176516]
[1617391764738,75.9591,2054.0,2053.6,0.26952321]
[1617391764936,75.9591,2054.0,2053.8,2.90695]
[1617391765137,32.0,2054.8,2053.8,2.90695]
[1617391765338,103.6935,2054.8,2053.8,2.90695]
[1617391765538,73.6935,2054.8,2053.8,2.90695]
[1617391765939,101.6935,2054.8,2053.8,2.90695]
[1617391766138,103.6935,2054.8,2053.8,2.90695]
[1617391766939,2.90695,2053.9,2053.8,2.90695]
[1617391767140,71.6935,2054.8,2053.8,2.90695]
[1617391769143,71.6935,2054.8,2054.3,2.90695]
[1617391769543,71.6935,2054.8,2053.7,1.7371]
[1617391769743,71.6935,2054.8,2053.6,78.9492]
[1617391770144,71.6935,2054.8,2053.8,0.26945223]
[1617391770351,71.6935,2054.8,2053.7,0.26950088]
[1617391770552,101.6935,2054.8,2053.7,0.26950088]
[1617391771151,2.90695,2053.8,2053.7,2.90695]
[1617391771352,4.69315,2053.8,2053.7,2.90695]
[1617391771955,4.69315,2053.8,2053.7,3.17720663]
[1617391772153,1.7862,2053.8,2053.7,3.17720663]
[1617391775357,2.90695,2054.0,2053.7,3.17720663]
[1617391775557,1.2621,2054.6,2053.7,3.17720663]
[1617391776157,1.2621,2054.6,2053.8,0.2710281]
[1617391776958,71.6935,2054.8,2053.8,0.2710281]
[1617391777158,71.6935,2054.8,2054.3,2.90695]
[1617391777959,28.4727,2055.0,2054.3,2.90695]
[1617391779160,2.90695,2054.5,2054.3,2.90695]
[1617391780363,2.90695,2054.5,2053.4,1.5991]
[1617391780562,2.90695,2054.5,2053.1,32.0]
[1617391780762,2.90695,2054.5,2053.2,0.27146325]
[1617391781161,28.4727,2055.0,2054.2,2.90695]
[1617391781762,28.4727,2055.0,2052.9,37.07819544]
[1617391782162,28.4727,2055.0,2053.0,0.27291663]
[1617391782764,28.4727,2055.0,2053.1,7.07609016]
[1617391782965,28.4727,2055.0,2053.1,32.0]
[1617391783164,28.4727,2055.0,2054.5,2.90695]
[1617391784966,28.4727,2055.0,2054.5,4.33975]
[1617391785168,28.4727,2055.0,2054.9,2.90695]
[1617391788467,28.4727,2055.0,2054.5,1.4328]
[1617391788668,28.4727,2055.0,2054.6,0.27137151]
[1617391789268,28.4727,2055.0,2054.9,2.90695]
[1617391795470,28.4727,2055.0,2053.9,2.0]
[1617391795671,30.0287,2055.0,2053.9,2.0]
[1617391796072,30.0287,2055.0,2054.0,0.27224203]
[1617391797274,30.0287,2055.0,2054.5,2.90695]
[1617391799274,2.90695,2054.6,2054.5,2.90695]
[1617391802195,2.90695,2054.6,2053.6,7.08865401]
[1617391802390,2.90695,2054.6,2053.4,5.08101249]
[1617391802586,2.90695,2054.6,2053.7,0.27312099]
[1617391802978,2.90695,2054.6,2053.5,0.27332831]
[1617391803180,32.90695,2054.6,2053.4,0.27334761]
[1617391803381,30.0,2054.6,2053.6,2.90695]
[1617391803979,30.0,2054.6,2053.7,0.27365102]
[1617391804479,2.0,2054.9,2053.7,0.27365102]
[1617391804883,32.0,2054.9,2053.7,0.27365102]
[1617391805380,2.90695,2053.8,2053.7,0.27365102]
[1617391805580,4.22215,2053.8,2053.7,0.27365102]
[1617391806181,1.3152,2053.8,2053.7,0.27365102]
[1617391807280,4.22215,2053.8,2053.7,0.27365102]
[1617391807884,1.3152,2053.8,2053.7,0.27365102]
[1617391809383,4.22215,2053.8,2053.7,0.27365102]
[1617391812887,4.22215,2053.8,2052.9,5.08251646]
[1617391813089,4.22215,2053.8,2052.7,5.07902521]
[1617391813295,34.22215,2053.8,2052.7,5.07902521]
[1617391813488,31.3152,2053.8,2053.0,2.90695]
[1617391813889,31.3152,2053.8,2053.1,0.27316631]
[1617391814690,1.3152,2053.8,2053.1,0.27316631]
[1617391814892,30.0,2054.1,2053.1,0.27316631]
[1617391815391,2.90695,2053.2,2053.1,0.27316631]
[1617391815591,4.28845,2053.2,2053.1,0.27316631]
[1617391816793,4.28845,2053.2,2053.0,2.90695]
[1617391827301,2.90695,2053.2,2053.0,2.90695]
[1617391829704,14.0472,2053.9,2053.0,2.90695]
[1617391831609,14.0472,2053.9,2053.7,2.90695]
[1617391832008,14.0472,2053.9,2053.3,1.8354]
[1617391833211,14.0472,2053.9,2053.4,0.27105053]
[1617391833410,14.0472,2053.9,2053.4,1.23355053]
[1617391833610,14.0472,2053.9,2053.8,4.74965]
[1617391836113,14.0472,2053.9,2053.8,2.90695]
[1617391847434,14.0472,2053.9,2053.8,3.17807265]
[1617391848435,14.0472,2053.9,2053.8,5.17807265]
[1617391849636,14.0472,2053.9,2053.8,4.90695]
[1617391850936,14.0472,2053.9,2053.8,5.86965]
[1617391851337,14.0472,2053.9,2053.8,6.14149311]
[1617391852835,14.0472,2053.9,2053.8,5.17879311]
[1617391856543,2.90695,2054.2,2053.8,5.17879311]
[1617391856744,14.296,2055.0,2053.8,35.17879311]
[1617391856943,14.296,2055.0,2053.9,0.27122742]
[1617391857744,14.296,2055.0,2054.9,4.50565]
[1617391859747,17.20295,2055.0,2054.9,2.90695]
[1617391862149,17.20295,2055.0,2053.8,32.0]
[1617391862451,19.19505,2055.0,2053.8,32.0]
[1617391862649,19.19505,2055.0,2053.9,0.27095476]
[1617391863851,16.2881,2055.0,2054.6,2.90695]
[1617391864851,14.296,2055.0,2054.1,0.9609]
[1617391865455,14.296,2055.0,2054.2,0.2703147]
[1617391865851,14.296,2055.0,2054.8,2.90695]
[1617391866055,14.296,2055.0,2054.8,4.60565]
[1617391868653,14.296,2055.0,2054.8,2.90695]
[1617391870956,15.8941,2055.0,2054.2,2.0]
[1617391871757,15.8941,2055.0,2054.4,2.90695]
[1617391871959,15.8941,2055.0,2053.0,6.15039856]
[1617391871960,15.8941,2055.0,2053.0,37.03528059]
[1617391872359,15.8941,2055.0,2053.0,32.0]
[1617391872559,15.8941,2055.0,2053.1,0.2712498]
[1617391872959,13.5888,2054.9,2053.1,0.2712498]
[1617391873564,13.5888,2054.9,2053.0,0.27142031]
[1617391873762,2.90695,2054.1,2053.8,2.90695]
[1617391873962,4.83085,2054.1,2053.8,2.90695]
[1617391875765,4.83085,2054.1,2053.9,0.27188565]
[1617391876567,4.83085,2054.1,2053.0,0.27220818]
[1617391876967,4.83085,2054.1,2052.9,37.04178725]
[1617391877367,4.83085,2054.1,2053.1,0.27231576]
[1617391877567,4.83085,2054.1,2052.9,37.04178725]
[1617391877568,4.83085,2054.1,2053.0,0.27231809]
[1617391877768,1.9239,2054.1,2053.7,2.90695]
[1617391878369,1.9239,2054.1,2053.8,0.27254964]
[1617391878569,1.9239,2054.1,2052.7,32.0]
[1617391878769,1.9239,2054.1,2052.7,30.0]
[1617391878973,2.0,2054.6,2052.4,5.04793861]
[1617391879170,1.6606,2054.1,2052.8,0.27322641]
[1617391879570,1.6606,2054.1,2052.5,0.27338307]
[1617391879773,1.6606,2054.1,2053.0,2.90695]
[1617391880172,1.6606,2054.1,2053.1,0.27362209]
[1617391881971,1.6606,2054.1,2053.4,2.90695]
[1617391882370,1.6606,2054.1,2053.5,0.27299186]
[1617391882872,32.0,2054.7,2053.5,0.27299186]
[1617391883073,13.5888,2054.9,2053.5,0.27299186]
[1617391883873,13.5888,2054.9,2054.1,2.90695]
[1617391885474,13.5888,2054.9,2054.2,0.27178379]
[1617391885874,13.5888,2054.9,2054.7,2.90695]
[1617391886074,13.5888,2054.9,2054.7,4.74475]
[1617391887778,13.5888,2054.9,2054.7,2.90695]
[1617391887979,2.90695,2054.8,2054.7,2.90695]
[1617391890681,2.90695,2054.8,2054.7,3.18084033]
[1617391891881,2.90695,2054.8,2054.7,2.90695]
[1617391893281,2.90695,2054.8,2053.9,105.0365]
[1617391893682,2.90695,2054.8,2054.0,0.27411993]
[1617391893883,2.90695,2054.8,2054.4,2.90695]
[1617391894284,2.90695,2054.8,2054.5,0.27394639]
[1617391895890,2.90695,2054.8,2054.7,2.90695]
[1617391896390,2.90695,2054.8,2054.7,4.30975]
[1617391898592,2.90695,2054.8,2054.7,2.90695]
[1617391898992,2.90695,2054.8,2054.7,3.18141415]
[1617391902699,13.5888,2054.9,2054.8,62.9499]
[1617391903100,13.5888,2054.9,2054.8,63.22432582]
[1617391908715,13.5888,2054.9,2054.8,0.27442582]
[1617391912517,13.5888,2054.9,2054.7,2.90695]
[1617391912918,13.5888,2054.9,2054.3,76.1431]
[1617391913118,13.5888,2054.9,2054.4,0.27494612]
[1617391914019,2.90695,2054.5,2054.4,0.27494612]
[1617391914221,4.67875,2054.5,2054.4,0.27494612]
[1617391917925,4.67875,2054.5,2053.8,0.27410564]
[1617391918327,4.67875,2054.5,2053.7,2.90695]
[1617391918527,4.67875,2054.5,2053.8,0.27429359]
[1617391920128,57.5114,2054.8,2054.2,2.90695]
[1617391920328,13.5888,2054.9,2054.2,2.90695]
[1617391920528,13.5888,2054.9,2054.3,0.27399481]
[1617391921928,15.5888,2054.9,2054.3,0.27399481]
[1617391922131,77.73945,2054.4,2054.3,0.27399481]
[1617391922330,78.98365,2054.4,2053.8,2.90695]
[1617391922531,78.98365,2054.4,2053.9,0.27441947]
[1617391924142,2.90695,2054.0,2053.9,0.27441947]
[1617391924339,13.5888,2054.9,2053.9,63.16531947]
[1617391924535,13.5888,2054.9,2054.0,0.27396943]
[1617391926132,13.5888,2054.9,2054.8,2.90695]
[1617391926732,13.5888,2054.9,2053.9,62.8909]
[1617391927132,15.2281,2054.9,2053.6,5.03765436]
[1617391927334,63.0861,2054.5,2054.0,0.2744566]
[1617391927536,15.2281,2054.9,2054.0,0.2744566]
[1617391927733,15.2281,2054.9,2053.7,70.7137]
[1617391927933,15.2281,2054.9,2054.1,0.27490073]
[1617391928134,15.2281,2054.9,2054.5,2.90695]
[1617391929237,13.5888,2054.9,2054.5,2.90695]
[1617391930140,13.5888,2054.9,2054.8,2.90695]
[1617391931541,15.1462,2054.9,2053.7,105.74740892]
[1617391931741,15.1462,2054.9,2053.7,70.7137]
[1617391931941,15.1462,2054.9,2053.8,0.27479373]
[1617391932141,15.1462,2054.9,2054.3,2.90695]
[1617391934048,2.90695,2054.4,2054.3,2.90695]
[1617391935047,2.90695,2054.4,2054.3,3.18306737]
[1617391936047,13.5888,2054.9,2054.3,3.18306737]
[1617391936247,13.5888,2054.9,2054.3,4.43186737]
[1617391936447,13.5888,2054.9,2054.4,0.27590159]
[1617391937668,13.5888,2054.9,2054.5,79.5518]
[1617391938059,13.5888,2054.9,2054.8,2.90695]
[1617391938453,13.5888,2054.9,2054.8,4.62365]
[1617391938859,13.5888,2054.9,2054.8,4.89934632]
[1617391940853,13.5888,2054.9,2054.8,34.89934632]
[1617391941253,13.5888,2054.9,2054.8,36.89934632]
[1617391942154,74.3738,2056.1,2054.8,36.89934632]
[1617391942355,2.90695,2056.2,2054.8,36.89934632]
[1617391942555,2.90695,2056.2,2055.4,63.6962]
[1617391942754,13.2385,2056.6,2055.5,32.0]
[1617391943153,13.2385,2056.6,2055.5,32.27659032]
[1617391943557,13.2385,2056.6,2055.6,0.27659531]
[1617391944155,13.2385,2056.6,2056.5,2.90695]
[1617391944355,13.2385,2056.6,2056.5,4.62885]
[1617391945755,11.0,2056.8,2056.5,34.62885]
[1617391945954,11.0,2056.8,2056.6,72.9696]
[1617391946155,11.0,2056.8,2056.7,32.0]
[1617391946756,11.0,2056.8,2056.7,31.0]
[1617391947356,4.2974,2056.8,2056.7,31.0]
[1617391948157,4.2974,2056.8,2056.7,31.27432899]
[1617391948556,13.1531,2058.0,2056.7,31.27432899]
[1617391949157,13.1531,2058.0,2056.8,0.27393696]
[1617391949556,13.1531,2058.0,2056.7,31.0]
[1617391949758,13.1531,2058.0,2056.8,1.37349938]
[1617391950159,13.1531,2058.0,2057.9,2.90695]
[1617391950358,13.1531,2058.0,2057.9,4.53885]
[1617391950960,13.1531,2058.0,2057.9,79.04705]
[1617391951659,13.1531,2058.0,2057.9,4.53885]
[1617391951859,13.1531,2058.0,2057.9,2.90695]
[1617391952259,16.06005,2058.0,2057.9,2.90695]
[1617391952661,16.06005,2058.0,2057.9,4.43775]
[1617391952863,13.1531,2058.0,2057.9,4.43775]
[1617391953864,13.1531,2058.0,2057.9,2.90695]
[1617391956175,16.06005,2058.0,2057.1,2.90695]
[1617391956570,16.06005,2058.0,2055.9,79.11]
[1617391956571,71.7524,2057.7,2055.9,79.11]
[1617391956766,1.7215,2057.7,2055.4,1.1]
[1617391956966,1.7215,2057.7,2056.8,68.3505]
[1617391957166,1.7215,2057.7,2056.8,98.3505]
[1617391957566,13.1531,2058.0,2056.8,98.3505]
[1617391957968,13.1531,2058.0,2056.8,100.3505]
[1617391958372,13.1531,2058.0,2057.9,2.90695]
[1617391958568,13.1531,2058.0,2057.7,1.5533]
[1617391959769,15.0952,2058.0,2057.4,61.0371]
[1617391960368,15.0952,2058.0,2057.9,2.90695]
[1617391961171,13.1531,2058.0,2057.9,2.90695]
[1617391965774,13.1531,2058.0,2057.5,2.0]
[1617391966373,13.1531,2058.0,2057.9,2.90695]
[1617391966775,13.1531,2058.0,2057.5,2.0]
[1617391966974,13.1531,2058.0,2056.5,30.0]
[1617391968375,43.1531,2058.0,2056.3,55.0544]
[1617391968575,2.0,2057.9,2056.3,55.0544]
[1617391968777,30.0,2057.8,2056.3,55.0544]
[1617391969176,2.0,2057.7,2056.3,55.0544]
[1617391969377,30.0,2057.6,2056.3,55.0544]
[1617391969576,1.6583,2057.7,2056.3,55.0544]
[1617391970276,1.6583,2057.7,2057.0,2.90695]
[1617391970884,1.6583,2057.7,2056.3,55.0544]
[1617391972290,1.6583,2057.7,2056.8,2.90695]
[1617391974379,2.90695,2056.9,2056.8,2.90695]
[1617391974880,4.47455,2056.9,2055.6,30.0]
[1617391975081,4.47455,2056.9,2055.6,105.8929]
[1617391976484,1.5676,2056.9,2055.6,30.0]
[1617391976681,1.6583,2057.7,2056.0,67.0185]
[1617391976880,81.8009,2057.9,2056.0,68.9769]
[1617391977281,30.0,2057.8,2056.0,68.9769]
[1617391977483,32.0,2057.8,2056.0,68.9769]
[1617391977681,33.5754,2057.8,2056.0,68.9769]
[1617391978483,33.5754,2057.8,2056.3,2.90695]
[1617391978783,3.5754,2057.8,2056.3,2.90695]
[1617391978986,2.0,2057.8,2056.3,2.90695]
[1617391979986,32.0,2057.8,2056.3,2.90695]
[1617391980184,2.0,2057.8,2056.3,2.90695]
[1617391980585,2.0,2057.8,2056.7,2.90695]
[1617391981183,30.0,2057.7,2056.1,30.0]
[1617391981384,30.0,2057.7,2056.0,67.0185]
[1617391982086,2.0,2057.6,2056.0,67.0185]
[1617391982286,2.0,2057.4,2056.0,67.0185]
[1617391982486,2.90695,2056.1,2055.7,2.90695]
[1617391982687,4.41715,2056.1,2055.7,2.90695]
[1617391983086,4.41715,2056.1,2054.8,69.0594]
[1617391983287,4.41715,2056.1,2054.9,2.0]
[1617391984287,4.41715,2056.1,2054.9,32.0]
[1617391984488,1.5102,2056.1,2055.9,2.90695]
[1617391984688,77.1452,2056.3,2055.9,2.90695]
[1617391986495,2.90695,2056.0,2054.9,30.0]
[1617391988501,77.1452,2056.3,2055.9,2.90695]
[1617391988700,27.0679,2057.0,2055.9,2.90695]
[1617391990501,27.0679,2057.0,2055.7,1.9817]
[1617391990902,27.0679,2057.0,2055.2,1.5801]
[1617391992606,27.0679,2057.0,2056.0,2.90695]
[1617391993406,27.0679,2057.0,2055.8,1.7675]
[1617391994106,27.0679,2057.0,2055.2,1.5801]
[1617391994306,27.0679,2057.0,2055.1,32.0]
[1617391994507,27.0679,2057.0,2056.0,2.90695]
[1617391994706,27.0679,2057.0,2056.0,4.87885]
[1617391996510,2.90695,2056.1,2056.0,4.87885]
[1617391997514,2.90695,2056.1,2056.0,1.9719]
[1617391997714,2.90695,2056.1,2055.1,2.0]
[1617391997914,2.90695,2056.1,2054.7,0.9858]
[1617391998515,1.8432,2056.8,2055.8,2.90695]
[1617392000116,2.9763,2056.9,2055.8,2.90695]
[1617392000516,2.90695,2055.9,2055.8,2.90695]
[1617392002321,2.90695,2055.9,2054.9,32.0]
[1617392002517,1.5383,2055.9,2055.3,2.90695]
[1617392004718,1.5383,2055.9,2055.6,2.90695]
[1617392006618,2.90695,2055.7,2055.6,2.90695]
[1617392008621,2.90695,2055.7,2055.3,2.90695]
[1617392009021,2.90695,2055.7,2052.8,32.0]
[1617392009222,2.90695,2055.7,2053.1,1.1]
[1617392009424,2.90695,2055.7,2052.9,1.1]
[1617392009621,13.8477,2055.6,2053.6,0.27476781]
[1617392009822,27.5811,2055.6,2053.6,0.27476781]
[1617392010622,27.5811,2055.6,2054.6,2.90695]
[1617392012825,2.90695,2054.7,2054.6,2.90695]
[1617392013024,4.82665,2054.7,2054.6,2.90695]
[1617392015228,1.9197,2054.7,2054.6,2.90695]
[1617392015425,27.5811,2055.6,2054.6,2.90695]
[1617392015625,27.5811,2055.6,2054.6,32.90695]
[1617392016824,27.5811,2055.6,2055.4,2.90695]
[1617392018729,2.90695,2055.5,2055.4,2.90695]
[1617392020733,4.75355,2055.5,2055.4,2.90695]
[1617392020933,4.75355,2055.5,2054.5,30.0]
[1617392022837,1.8466,2055.5,2055.2,2.90695]
[1617392023837,1.8466,2055.5,2054.0,0.9815]
[1617392024038,1.8466,2055.5,2053.0,32.0]
[1617392024439,1.8466,2055.5,2053.7,0.27482663]
[1617392024841,1.8466,2055.5,2054.9,2.90695]
[1617392025844,15.0,2055.5,2054.9,2.90695]
[1617392026746,2.90695,2055.0,2054.6,2.90695]
[1617392026945,4.49325,2055.0,2054.6,2.90695]
[1617392028748,2.90695,2054.7,2054.6,2.90695]
[1617392031953,2.90695,2054.7,2053.5,0.965]
[1617392032154,2.90695,2054.7,2053.6,0.27692185]
[1617392032854,16.6118,2055.5,2054.5,2.90695]
[1617392034854,2.90695,2054.6,2054.5,2.90695]
[1617392037058,2.90695,2054.6,2053.7,32.0]
[1617392037658,2.90695,2054.6,2053.8,0.27800548]
[1617392038061,2.90695,2054.6,2053.8,30.27800548]
[1617392038558,2.90695,2054.6,2053.9,0.27826145]
[1617392038858,1.8085,2055.0,2054.4,2.90695]
[1617392039258,1.8085,2055.0,2054.5,0.27836095]
[1617392039860,16.6118,2055.5,2054.5,0.27836095]
[1617392040860,15.0,2055.5,2055.1,2.90695]
[1617392042861,2.90695,2055.2,2055.1,2.90695]
[1617392043061,15.0,2055.5,2055.1,4.59295]
[1617392043462,15.0,2055.5,2055.1,34.59295]
[1617392043662,15.0,2055.5,2055.2,0.27787744]
[1617392044865,15.0,2055.5,2055.4,2.90695]
[1617392046586,15.0,2055.5,2055.4,3.18429803]
[1617392047268,15.0,2055.5,2055.4,5.18429803]
[1617392047469,15.0,2055.5,2055.4,35.18429803]
[1617392051268,14.7901,2055.5,2055.4,35.18429803]
[1617392051468,11.2032,2055.5,2055.4,35.18429803]
[1617392051667,32.0,2058.7,2055.4,35.18429803]
[1617392051869,2.0,2058.7,2055.4,35.18429803]
[1617392052072,15.2955,2058.7,2055.5,0.27501917]
[1617392052470,28.467,2058.7,2055.6,1.1]
[1617392052669,28.467,2058.7,2055.7,0.2748637]
[1617392053070,58.467,2058.7,2055.7,0.2748637]
[1617392054975,58.467,2058.7,2057.0,2.90695]
[1617392055175,58.467,2058.7,2057.0,4.75405]
[1617392055577,28.467,2058.7,2057.0,4.75405]
[1617392056977,2.90695,2057.1,2057.0,4.75405]
[1617392058086,26.467,2058.7,2057.0,34.75405]
[1617392058291,26.467,2058.7,2057.0,36.75405]
[1617392059086,26.467,2058.7,2058.2,4.77975]
[1617392061084,2.90695,2058.3,2057.7,1.2526]
[1617392061282,2.90695,2058.3,2057.6,2.90695]
[1617392061683,2.90695,2058.3,2057.0,33.8471]
[1617392061684,2.90695,2058.3,2057.0,30.0]
[1617392061883,2.90695,2058.3,2056.5,30.0]
[1617392062486,2.0,2058.2,2056.5,30.0]
[1617392063085,2.0,2058.2,2056.7,2.90695]
[1617392063284,2.0,2058.2,2056.8,30.0]
[1617392063685,1.4241,2058.4,2056.8,30.0]
[1617392064086,26.467,2058.7,2056.8,31.3346]
[1617392064686,28.467,2058.7,2056.8,31.3346]
[1617392064885,58.467,2058.7,2056.8,1.3346]
[1617392065085,28.467,2058.7,2057.1,2.90695]
[1617392065285,30.0,2058.6,2057.1,2.90695]
[1617392065485,2.0,2058.5,2056.7,30.0]
[1617392065685,2.0,2058.5,2056.3,1.6545]
[1617392066888,30.0,2058.4,2056.3,1.6545]
[1617392067087,2.0,2058.5,2056.8,2.90695]
[1617392067288,2.0,2058.5,2056.8,4.71575]
[1617392067488,2.0,2058.5,2056.8,34.71575]
[1617392068687,26.467,2058.7,2056.8,34.71575]
[1617392069088,2.90695,2058.2,2056.8,31.8088]
[1617392069488,2.90695,2058.2,2056.9,2.0]
[1617392069687,2.90695,2058.2,2057.0,30.0]
[1617392069888,2.90695,2058.2,2057.1,2.0]
[1617392070089,2.90695,2058.2,2057.2,30.0]
[1617392071189,26.467,2058.7,2057.9,2.90695]
[1617392073192,2.90695,2058.0,2057.9,2.90695]
[1617392075092,2.90695,2058.0,2057.6,2.90695]
[1617392076094,2.90695,2058.0,2056.4,30.0]
[1617392076295,2.90695,2058.0,2055.9,2.0]
[1617392076296,2.90695,2058.0,2055.9,32.0]
[1617392076501,2.90695,2058.0,2056.5,2.0]
[1617392076695,2.90695,2058.0,2055.9,30.0]
[1617392076696,13.0895,2057.9,2055.9,30.0]
[1617392077095,13.0895,2057.9,2056.8,2.90695]
[1617392079200,2.90695,2056.9,2056.8,2.90695]
[1617392079601,1.4242,2057.2,2056.8,2.90695]
[1617392079801,13.0895,2057.9,2056.8,32.90695]
[1617392080605,13.0895,2057.9,2056.8,34.90695]
[1617392081208,13.0895,2057.9,2056.8,32.0]
[1617392081611,13.0895,2057.9,2056.8,33.953]
[1617392083208,13.0895,2057.9,2057.7,2.90695]
[1617392083408,13.0895,2057.9,2057.7,4.81065]
[1617392085112,2.90695,2057.8,2057.7,4.81065]
[1617392085313,2.90695,2057.8,2057.7,2.90695]
[1617392085511,2.90695,2057.8,2056.8,33.953]
[1617392085710,2.90695,2057.8,2056.8,30.0]
[1617392085913,2.90695,2057.8,2056.2,1.9576]
[1617392086112,2.90695,2057.8,2055.9,1.1]
[1617392087112,2.90695,2057.3,2057.0,2.90695]
[1617392088713,4.72505,2057.3,2057.0,2.90695]
[1617392090115,2.90695,2057.3,2057.0,2.90695]
[1617392090914,24.3441,2057.8,2057.0,2.90695]
[1617392091116,24.3441,2057.8,2057.0,4.21205]
[1617392091316,24.3441,2057.8,2057.7,4.73785]
[1617392092317,24.3441,2057.8,2057.7,1.8309]
[1617392096822,24.3441,2057.8,2057.5,2.90695]
[1617392097023,24.3441,2057.8,2057.0,32.0]
[1617392097226,24.3441,2057.8,2056.5,0.978]
[1617392097227,24.3441,2057.8,2057.5,2.90695]
[1617392098824,24.3441,2057.8,2057.6,0.27690535]
[1617392102728,11.0,2057.8,2057.6,0.27690535]
[1617392105528,9.5349,2057.8,2057.6,0.27690535]
[1617392106130,9.3195,2057.8,2057.6,0.27690535]
[1617392106330,8.8538,2057.8,2057.6,0.27690535]
[1617392106733,5.9855,2057.8,2057.6,0.27690535]
[1617392107233,5.6216,2057.8,2057.6,0.27690535]
[1617392107434,4.5414,2057.8,2057.6,0.27690535]
[1617392107633,4.3868,2057.8,2057.6,1.37690535]
[1617392107831,3.8379,2057.8,2057.6,1.37690535]
[1617392108233,2.8748,2057.8,2057.7,0.27622107]
[1617392108433,2.8748,2057.8,2057.7,2.35422107]
[1617392108633,2.8748,2057.8,2057.7,34.35422107]
[1617392110833,1.9178,2057.8,2057.7,34.35422107]
[1617392111033,1.7678,2057.8,2057.7,34.35422107]
[1617392112034,0.8622,2057.8,2057.7,34.35422107]
[1617392112434,0.0632,2057.8,2057.7,34.35422107]
[1617392119642,0.0632,2057.8,2057.7,32.27622107]
[1617392119842,0.0632,2057.8,2057.7,30.27622107]
[1617392119843,1.8716,2057.8,2057.7,30.27622107]
[1617392120042,1.8716,2057.8,2057.7,0.27622107]
[1617392121544,1.8716,2057.8,2057.5,2.90695]
[1617392121545,1.8716,2057.8,2057.6,0.27693261]
[1617392125251,0.0632,2057.8,2057.6,0.27693261]
[1617392129756,2.90695,2057.7,2057.6,0.27693261]
[1617392129955,4.82845,2057.7,2057.5,2.90695]
[1617392130157,4.82845,2057.7,2056.3,30.0]
[1617392130357,4.82845,2057.7,2056.4,0.27757769]
[1617392130757,4.82845,2057.7,2056.4,1.26227769]
[1617392131162,0.0632,2057.8,2056.4,1.26227769]
[1617392131359,0.0632,2057.8,2056.5,0.27763462]
[1617392131556,0.0632,2057.8,2056.5,32.27763462]
[1617392131759,0.0632,2057.8,2057.7,2.90695]
[1617392132159,0.0632,2057.8,2057.7,3.18412937]
[1617392137061,0.0632,2057.8,2057.7,2.90695]